bitfinex-derivatives/quotes_BTCF0:USTF0_20241015
["timestamp","ask_amount","ask_price","bid_price","bid_amount"]
[1729005465359,0.45,65732.0,65720.0,0.3608]
[1729005465564,0.45,65732.0,65709.0,0.3608]
[1729005465565,0.076101,65718.0,65717.0,0.3608]
[1729005465859,0.076101,65718.0,65709.0,0.3608]
[1729005465860,0.526101,65718.0,65693.0,0.07613]
[1729005466162,0.526101,65718.0,65689.0,0.3608]
[1729005466163,0.45,65699.0,65689.0,0.3608]
[1729005466353,0.3608,65710.0,65700.0,0.076122]
[1729005466554,0.3608,65710.0,65696.0,0.3608]
[1729005466555,0.3608,65704.0,65696.0,0.3608]
[1729005466754,0.3608,65710.0,65706.0,0.076115]
[1729005466948,0.3608,65710.0,65701.0,0.076121]
[1729005467273,0.45,65713.0,65708.0,0.076113]
[1729005467650,0.45,65713.0,65703.0,0.3608]
[1729005467847,0.00494107,65714.0,65713.0,0.076107]
[1729005468055,0.36308371,65732.0,65713.0,0.45]
[1729005468255,0.00228371,65732.0,65731.0,0.076086]
[1729005469048,0.00228371,65732.0,65730.0,0.3608]
[1729005469049,0.3608,65738.0,65730.0,0.3608]
[1729005469254,0.3608,65738.0,65723.0,0.8108]
[1729005469556,0.3608,65738.0,65729.0,0.3608]
[1729005469764,0.00486409,65741.0,65739.0,0.076077]
[1729005469958,0.00228292,65752.0,65740.0,0.45]
[1729005470348,0.3608,65757.0,65738.0,0.7216]
[1729005470552,0.3608,65757.0,65751.0,0.526063]
[1729005470759,0.42604,65785.0,65756.0,0.45]
[1729005470760,0.3608,65777.0,65756.0,0.45]
[1729005470961,0.3608,65763.0,65758.0,0.076055]
[1729005471161,0.3608,65763.0,65753.0,0.3608]
[1729005471664,0.3608,65763.0,65758.0,0.076054]
[1729005471852,0.3608,65763.0,65759.0,0.076053]
[1729005472250,0.3608,65763.0,65753.0,0.3608]
[1729005472454,0.45,65760.0,65754.0,0.076059]
[1729005472666,0.45,65755.0,65753.0,0.3608]
[1729005474366,0.45,65760.0,65758.0,0.076055]
[1729005474659,0.3608,65776.0,65759.0,0.8108]
[1729005474862,0.3608,65776.0,65771.0,0.076039]
[1729005475061,0.3608,65776.0,65766.0,0.076046]
[1729005475264,0.3608,65776.0,65759.0,0.3608]
[1729005475461,0.3608,65776.0,65770.0,0.07604]
[1729005475661,0.3608,65776.0,65759.0,0.36556379]
[1729005475856,0.3608,65776.0,65761.0,0.076051]
[1729005475857,0.45,65771.0,65761.0,0.076051]
[1729005476061,0.45,65765.0,65759.0,0.3608]
[1729005476262,0.45,65760.0,65759.0,0.3608]
[1729005476567,0.45,65760.0,65753.0,0.3608]
[1729005477167,0.45,65765.0,65757.0,0.076055]
[1729005477464,0.45,65765.0,65758.0,0.076055]
[1729005477667,0.3608,65769.0,65753.0,0.3608]
[1729005477966,0.3608,65769.0,65758.0,0.076054]
[1729005478465,0.45,65765.0,65758.0,0.076054]
[1729005478673,0.3608,65768.0,65753.0,0.3608]
[1729005478674,0.45,65759.0,65753.0,0.3608]
[1729005478861,0.45,65754.0,65753.0,0.3608]
[1729005479065,0.45,65759.0,65756.0,0.076057]
[1729005479263,0.45,65759.0,65753.0,0.3608]
[1729005479465,0.45,65759.0,65755.0,0.076058]
[1729005480261,0.45,65759.0,65753.0,0.3608]
[1729005481572,0.45,65759.0,65741.0,0.3608]
[1729005481573,0.8108,65754.0,65744.0,0.076071]
[1729005481762,0.45,65745.0,65738.0,0.076078]
[1729005481960,0.3608,65747.0,65727.0,0.3608]
[1729005481961,0.45,65739.0,65727.0,0.00486096]
[1729005482166,0.3608,65747.0,65725.0,0.00228172]
[1729005482167,0.45,65732.0,65731.0,0.076086]
[1729005482363,0.436869,65747.0,65725.0,0.00228172]
[1729005482364,0.3608,65747.0,65743.0,0.076072]
[1729005482567,0.1483,65760.0,65725.0,0.00228172]
[1729005482568,0.3608,65756.0,65742.0,0.8108]
[1729005482770,0.3608,65772.0,65755.0,0.3608]
[1729005482972,0.1556,65792.0,65776.0,0.076034]
[1729005482973,0.78684,65785.0,65776.0,0.076034]
[1729005483163,0.3608,65777.0,65773.0,0.076037]
[1729005483468,0.3608,65777.0,65770.0,0.3608]
[1729005483469,0.78684,65785.0,65770.0,0.8108]
[1729005483666,0.36562611,65785.0,65770.0,0.8108]
[1729005483860,0.36562611,65785.0,65770.0,0.3608]
[1729005484074,0.45,65782.0,65770.0,0.3608]
[1729005484265,0.36562611,65785.0,65784.0,0.076025]
[1729005484462,0.00228171,65787.0,65786.0,0.076023]
[1729005484765,0.45,65794.0,65779.0,0.3608]
[1729005484962,0.3608,65797.0,65779.0,0.3608]
[1729005484963,0.45,65780.0,65779.0,0.3608]
[1729005485168,0.45,65780.0,65751.0,0.228062]
[1729005485169,0.88683,65780.0,65761.0,0.076051]
[1729005485361,0.45,65762.0,65754.0,0.076059]
[1729005485672,0.45,65762.0,65749.0,0.00228091]
[1729005485873,0.45,65756.0,65754.0,0.076059]
[1729005486169,0.3608,65755.0,65749.0,0.07834591]
[1729005486366,0.3608,65751.0,65749.0,0.00228091]
[1729005486567,0.3608,65751.0,65750.0,0.076064]
[1729005487476,0.3608,65751.0,65749.0,0.00228091]
[1729005487477,0.8108,65751.0,65749.0,0.00228091]
[1729005487665,0.8108,65751.0,65749.0,0.07834591]
[1729005488062,0.3608,65751.0,65750.0,0.076064]
[1729005488263,0.45,65764.0,65749.0,0.00228091]
[1729005488471,0.45495806,65764.0,65749.0,0.00228091]
[1729005488777,0.8108,65751.0,65750.0,0.076064]
[1729005488977,0.076032,65779.0,65750.0,0.076064]
[1729005488978,0.14497672,65825.0,65750.0,0.076064]
[1729005489174,0.00480705,65806.0,65794.0,0.3608]
[1729005489476,0.3608,65866.0,65751.0,0.783436]
[1729005489477,0.45,65820.0,65805.0,0.3608]
[1729005489669,0.45,65814.0,65812.0,0.3608]
[1729005490063,0.1586,65833.0,65812.0,0.3608]
[1729005490269,0.1586,65833.0,65824.0,0.3608]
[1729005490464,0.075976,65827.0,65824.0,0.3608]
[1729005490964,0.508,65834.0,65824.0,0.3608]
[1729005491372,0.07597,65832.0,65824.0,0.3608]
[1729005492268,0.00228063,65835.0,65831.0,0.3608]
[1729005492473,0.00228063,65835.0,65833.0,0.280407]
[1729005492681,0.00228063,65835.0,65804.0,0.04741519]
[1729005492682,0.45,65832.0,65813.0,0.3608]
[1729005492865,0.45,65832.0,65804.0,0.36307905]
[1729005492866,0.45,65814.0,65804.0,0.36307905]
[1729005493065,0.45,65821.0,65810.0,0.3608]
[1729005493269,0.45,65821.0,65812.0,0.075992]
[1729005493469,0.45,65821.0,65810.0,0.3608]
[1729005493470,0.45,65826.0,65821.0,0.075982]
[1729005493771,0.36308063,65835.0,65825.0,0.3608]
[1729005493772,0.45,65832.0,65825.0,0.3608]
[1729005494477,0.45,65832.0,65831.0,0.3608]
[1729005494677,0.00228063,65835.0,65825.0,0.3608]
[1729005494678,0.45,65827.0,65825.0,0.3608]
[1729005495163,0.525975,65827.0,65825.0,0.3608]
[1729005495666,0.45,65827.0,65825.0,0.3608]
[1729005495863,0.525976,65827.0,65825.0,0.3608]
[1729005496267,0.45,65827.0,65825.0,0.3608]
[1729005496469,0.45,65827.0,65818.0,0.3608]
[1729005496470,0.075985,65819.0,65818.0,0.3608]
[1729005496676,0.525985,65819.0,65818.0,0.3608]
[1729005496869,0.45,65819.0,65812.0,0.3608]
[1729005497176,0.525991,65813.0,65812.0,0.3608]
[1729005497673,0.075995,65810.0,65804.0,0.436801]
[1729005497978,0.45,65805.0,65804.0,0.436801]
[1729005498572,0.45,65823.0,65820.0,0.075983]
[1729005498777,0.45,65823.0,65817.0,0.3608]
[1729005498975,0.075979,65824.0,65817.0,0.436787]
[1729005499179,0.45,65832.0,65817.0,0.436787]
[1729005499180,0.075986,65818.0,65817.0,0.3608]
[1729005499377,0.075986,65818.0,65805.0,0.3608]
[1729005499564,0.075997,65808.0,65805.0,0.3608]
[1729005499772,0.3608,65817.0,65805.0,0.3608]
[1729005500077,0.526,65806.0,65805.0,0.3608]
[1729005500272,0.526,65806.0,65778.0,0.04513614]
[1729005500273,0.076017,65791.0,65788.0,0.3608]
[1729005500468,0.45,65794.0,65788.0,0.3608]
[1729005500968,0.076019,65789.0,65788.0,0.3608]
[1729005501163,0.076019,65789.0,65785.0,0.3608]
[1729005501164,0.45,65789.0,65785.0,0.3608]
[1729005501367,0.45,65789.0,65781.0,0.3608]
[1729005501569,0.076027,65782.0,65781.0,0.3608]
[1729005502865,0.076039,65772.0,65769.0,0.3608]
[1729005503072,0.076041,65770.0,65769.0,0.3608]
[1729005503573,0.90612,65770.0,65754.0,0.436859]
[1729005503784,0.076053,65761.0,65754.0,0.436859]
[1729005504274,0.45,65770.0,65754.0,0.436859]
[1729005504275,0.3608,65768.0,65754.0,0.436559]
[1729005504476,0.076045,65767.0,65754.0,0.3608]
[1729005504793,0.3608,65768.0,65754.0,0.3608]
[1729005504971,0.076057,65757.0,65754.0,0.3608]
[1729005505169,0.076048,65764.0,65754.0,0.3608]
[1729005505371,0.076058,65755.0,65754.0,0.3608]
[1729005506985,0.076058,65755.0,65754.0,0.8108]
[1729005507777,0.36623628,65762.0,65754.0,0.45]
[1729005507979,0.076073,65743.0,65739.0,0.3608]
[1729005508279,0.076073,65743.0,65732.0,0.3608]
[1729005508280,0.3608,65748.0,65738.0,0.3608]
[1729005508480,0.076077,65739.0,65738.0,0.3608]
[1729005508982,0.45,65751.0,65738.0,0.3608]
[1729005509280,0.076075,65741.0,65738.0,0.3608]
[1729005509481,0.076069,65746.0,65740.0,0.45]
[1729005509782,0.36630053,65759.0,65745.0,0.8108]
[1729005509970,0.076058,65756.0,65751.0,0.45]
[1729005510168,0.00550053,65759.0,65751.0,0.526062]
[1729005510375,0.3608,65766.0,65745.0,0.3608]
[1729005510376,0.3608,65758.0,65746.0,0.076069]
[1729005510573,0.076062,65752.0,65746.0,0.076069]
[1729005510774,0.3608,65751.0,65745.0,0.3608]
[1729005510978,0.3608,65751.0,65732.0,0.3608]
[1729005510979,0.07607,65745.0,65737.0,0.076079]
[1729005511181,0.076074,65742.0,65737.0,0.076079]
[1729005511382,0.45,65744.0,65737.0,0.076079]
[1729005511682,0.076077,65739.0,65732.0,0.3608]
[1729005511884,0.45,65744.0,65738.0,0.076078]
[1729005512188,0.076073,65743.0,65739.0,0.076076]
[1729005512577,0.076069,65747.0,65743.0,0.076072]
[1729005512778,0.076069,65747.0,65739.0,0.3608]
[1729005512779,0.3608,65748.0,65739.0,0.3608]
[1729005513272,0.3608,65748.0,65738.0,0.076077]
[1729005513487,0.45,65744.0,65738.0,0.3608]
[1729005513789,0.076077,65739.0,65738.0,0.3608]
[1729005515280,0.076077,65739.0,65738.0,0.436878]
[1729005515478,0.00562892,65747.0,65738.0,0.3608]
[1729005515680,0.076073,65743.0,65742.0,0.076073]
[1729005516183,0.436868,65748.0,65744.0,0.07607]
[1729005516390,0.44228805,65748.0,65745.0,0.076069]
[1729005516686,0.076053,65760.0,65744.0,0.8108]
[1729005516687,0.3608,65755.0,65744.0,0.8108]
[1729005516886,0.07606,65754.0,65745.0,0.07607]
[1729005517087,0.076043,65769.0,65744.0,0.8108]
[1729005517088,0.3608,65768.0,65754.0,0.07606]
[1729005517389,0.07602,65789.0,65754.0,0.07606]
[1729005517390,0.076033,65778.0,65775.0,0.076035]
[1729005517577,0.076037,65774.0,65767.0,0.3608]
[1729005517777,0.076037,65774.0,65771.0,0.07604]
[1729005517984,0.076035,65776.0,65770.0,0.07604]
[1729005518191,0.3608,65781.0,65767.0,0.8108]
[1729005518385,0.3608,65788.0,65773.0,0.3608]
[1729005518684,0.36628982,65788.0,65773.0,0.3608]
[1729005518991,0.076038,65773.0,65768.0,0.076042]
[1729005519190,0.3608,65773.0,65767.0,0.3608]
[1729005519391,0.076043,65768.0,65767.0,0.3608]
[1729005519599,0.45,65769.0,65759.0,0.076053]
[1729005519886,0.45,65769.0,65751.0,0.3608]
[1729005520087,0.45,65763.0,65753.0,0.076061]
[1729005520292,0.45,65763.0,65751.0,0.3608]
[1729005520293,0.07606,65754.0,65751.0,0.3608]
[1729005520589,0.45,65758.0,65751.0,0.3608]
[1729005520793,0.076062,65752.0,65751.0,0.3608]
[1729005520990,0.076057,65757.0,65744.0,0.3608]
[1729005521189,0.45,65758.0,65745.0,0.076069]
[1729005521385,0.3608,65759.0,65738.0,0.45]
[1729005521386,0.076071,65744.0,65743.0,0.3608]
[1729005521695,0.076071,65744.0,65740.0,0.076076]
[1729005521990,0.076074,65742.0,65740.0,0.076076]
[1729005522494,0.45,65752.0,65733.0,0.45]
[1729005522691,0.076074,65742.0,65737.0,0.076079]
[1729005522895,0.3608,65746.0,65737.0,0.076079]
[1729005523090,0.3608,65746.0,65726.0,0.36621667]
[1729005523091,0.076082,65735.0,65730.0,0.076087]
[1729005523388,0.076091,65727.0,65726.0,0.3608]
[1729005524391,0.076091,65727.0,65702.0,0.04513614]
[1729005524392,0.91196475,65727.0,65702.0,0.04513614]
[1729005524583,0.91196475,65727.0,65699.0,0.42098286]
[1729005524584,0.3608,65721.0,65708.0,0.076113]
[1729005524787,0.076108,65713.0,65708.0,0.076113]
[1729005524989,0.076108,65713.0,65710.0,0.07611]
[1729005525190,0.076109,65711.0,65705.0,0.3608]
[1729005525497,0.45,65708.0,65701.0,0.04513614]
[1729005525795,0.45,65702.0,65701.0,0.07612]
[1729005525990,0.45,65702.0,65695.0,0.04513614]
[1729005526298,0.3608,65709.0,65695.0,0.13631086]
[1729005526299,0.45,65696.0,65695.0,0.13631086]
[1729005526591,0.45,65696.0,65695.0,0.076128]
[1729005527196,0.45,65696.0,65694.0,0.06018286]
[1729005527392,0.45,65696.0,65690.0,0.04531939]
[1729005527393,0.076131,65692.0,65690.0,0.04531939]
[1729005527693,0.45,65691.0,65688.0,0.04531939]
[1729005527899,0.076135,65689.0,65688.0,0.04531939]
[1729005528101,0.45,65691.0,65680.0,0.076145]
[1729005528102,0.3608,65690.0,65685.0,0.04531939]
[1729005528296,0.3608,65690.0,65675.0,0.07522858]
[1729005528297,0.07615,65676.0,65675.0,0.04531939]
[1729005528489,0.07615,65676.0,65670.0,0.3608]
[1729005528490,0.8108,65676.0,65670.0,0.3608]
[1729005528690,0.076162,65666.0,65665.0,0.04526774]
[1729005528892,0.45,65666.0,65665.0,0.04526774]
[1729005529087,0.45,65666.0,65664.0,0.076163]
[1729005529285,0.45,65666.0,65651.0,0.3608]
[1729005529286,0.3608,65665.0,65651.0,0.3608]
[1729005529498,0.45,65663.0,65656.0,0.3608]
[1729005529696,0.3608,65667.0,65654.0,0.076175]
[1729005529697,0.45,65657.0,65654.0,0.076175]
[1729005529892,0.45,65655.0,65654.0,0.076175]
[1729005530302,0.45,65661.0,65660.0,0.076167]
[1729005530594,0.8108,65667.0,65652.0,0.3608]
[1729005530801,0.45,65672.0,65660.0,0.3608]
[1729005530994,0.45,65672.0,65671.0,0.076156]
[1729005531302,0.45,65672.0,65660.0,0.3608]
[1729005531489,0.076156,65671.0,65666.0,0.076161]
[1729005531689,0.36633541,65673.0,65662.0,0.3608]
[1729005531988,0.3608,65673.0,65672.0,0.076155]
[1729005532193,0.3608,65673.0,65658.0,0.3608]
[1729005532393,0.45,65668.0,65661.0,0.076167]
[1729005532602,0.3608,65665.0,65662.0,0.076166]
[1729005532801,0.45,65662.0,65658.0,0.3608]
[1729005533001,0.526167,65662.0,65659.0,0.07617]
[1729005533196,0.8108,65673.0,65668.0,0.076159]
[1729005533503,0.076158,65669.0,65658.0,0.3608]
[1729005533692,0.45,65668.0,65663.0,0.076165]
[1729005533893,0.076162,65666.0,65663.0,0.076165]
[1729005534205,0.076164,65664.0,65658.0,0.436971]
[1729005534392,0.076164,65664.0,65660.0,0.076168]
[1729005534802,0.076164,65664.0,65655.0,0.076174]
[1729005534803,0.076166,65662.0,65655.0,0.076174]
[1729005534993,0.076168,65661.0,65656.0,0.076173]
[1729005535401,0.36621869,65664.0,65650.0,0.36646943]
[1729005535590,0.36621869,65664.0,65656.0,0.076173]
[1729005535795,0.07617,65659.0,65656.0,0.076173]
[1729005536105,0.076172,65657.0,65651.0,0.076179]
[1729005536300,0.45,65656.0,65652.0,0.076177]
[1729005536497,0.45,65656.0,65645.0,0.076186]
[1729005536700,0.076171,65658.0,65652.0,0.076177]
[1729005536893,0.36621869,65664.0,65663.0,0.076165]
[1729005537295,0.45,65672.0,65664.0,0.076163]
[1729005537598,0.45,65672.0,65651.0,0.3608]
[1729005537899,0.076158,65669.0,65664.0,0.076163]
[1729005538104,0.076158,65669.0,65655.0,0.45]
[1729005538302,0.076159,65668.0,65659.0,0.3608]
[1729005538498,0.076159,65668.0,65660.0,0.076169]
[1729005538711,0.076163,65665.0,65651.0,0.3608]
[1729005538897,0.0055263,65672.0,65662.0,0.076165]
[1729005539202,0.45,65673.0,65662.0,0.076166]
[1729005539408,0.3608,65665.0,65662.0,0.076166]
[1729005539702,0.36626362,65674.0,65657.0,0.3608]
[1729005539703,0.45,65673.0,65657.0,0.3608]
[1729005540004,0.076155,65672.0,65666.0,0.076161]
[1729005540195,0.36626362,65674.0,65665.0,0.3608]
[1729005540394,0.36626362,65674.0,65659.0,0.07617]
[1729005540395,0.36626362,65674.0,65672.0,0.076154]
[1729005540594,0.076154,65673.0,65668.0,0.076159]
[1729005540808,0.36626362,65674.0,65659.0,0.45]
[1729005541018,0.3608,65667.0,65661.0,0.076167]
[1729005541311,0.076162,65666.0,65662.0,0.076166]
[1729005541604,0.3608,65664.0,65661.0,0.076166]
[1729005541806,0.3608,65664.0,65663.0,0.076165]
[1729005542106,0.14496281,65769.0,65663.0,0.076165]
[1729005542107,0.3608,65679.0,65678.0,0.076148]
[1729005542406,0.3608,65679.0,65678.0,0.526148]
[1729005542605,0.436947,65679.0,65675.0,0.076151]
[1729005543109,0.436947,65679.0,65664.0,0.221864]
[1729005543110,0.45,65677.0,65664.0,0.076163]
[1729005543315,0.436946,65680.0,65650.0,0.3608]
[1729005543316,0.8108,65665.0,65650.0,0.3608]
[1729005543604,0.45,65655.0,65650.0,0.436979]
[1729005543810,0.45,65655.0,65640.0,0.00228471]
[1729005543999,0.526191,65641.0,65640.0,0.00228471]
[1729005544196,0.526191,65641.0,65640.0,0.07847671]
[1729005544197,0.45,65641.0,65640.0,0.07847671]
[1729005544405,0.076187,65645.0,65632.0,0.00548724]
[1729005544605,0.076188,65643.0,65630.0,0.3608]
[1729005544909,0.076187,65644.0,65643.0,0.076187]
[1729005545109,0.076189,65643.0,65640.0,0.076192]
[1729005545407,0.3608,65651.0,65629.0,0.3608]
[1729005545408,0.076193,65639.0,65636.0,0.076196]
[1729005545613,0.45,65641.0,65629.0,0.3608]
[1729005545908,0.3608,65643.0,65629.0,0.076204]
[1729005545909,0.45,65630.0,65629.0,0.076204]
[1729005546110,0.45,65630.0,65623.0,0.3608]
[1729005546111,0.3608,65635.0,65634.0,0.076199]
[1729005546605,0.076176,65654.0,65642.0,0.076189]
[1729005546808,0.00228612,65661.0,65648.0,0.3608]
[1729005547003,0.7216,65654.0,65640.0,0.3608]
[1729005547201,0.076189,65643.0,65642.0,0.076188]
[1729005547400,0.3608,65654.0,65636.0,0.3608]
[1729005547401,0.3608,65646.0,65636.0,0.3608]
[1729005547604,0.076188,65644.0,65640.0,0.076191]
[1729005547798,0.3608,65646.0,65630.0,0.3608]
[1729005547799,0.45,65643.0,65633.0,0.0762]
[1729005548003,0.526199,65634.0,65630.0,0.3608]
[1729005548207,0.8108,65634.0,65616.0,0.3608]
[1729005548405,0.45,65629.0,65628.0,0.076206]
[1729005548811,0.45,65629.0,65617.0,0.00553459]
[1729005548998,0.45,65629.0,65620.0,0.076215]
[1729005549311,0.076222,65614.0,65612.0,0.076224]
[1729005549511,0.7216,65626.0,65612.0,0.076224]
[1729005549512,0.076223,65613.0,65612.0,0.076224]
[1729005549815,0.8108,65617.0,65608.0,0.3608]
[1729005549816,0.3608,65617.0,65608.0,0.3608]
[1729005550119,0.076225,65611.0,65609.0,0.076228]
[1729005550298,0.076225,65611.0,65592.0,0.36835521]
[1729005550299,0.437025,65611.0,65592.0,0.45]
[1729005550499,0.076246,65594.0,65591.0,0.3608]
[1729005550801,0.076247,65592.0,65591.0,0.3608]
[1729005551104,0.45,65596.0,65591.0,0.3608]
[1729005551105,0.076247,65593.0,65591.0,0.076248]
[1729005551308,0.3608,65597.0,65581.0,0.45]
[1729005551506,0.3608,65597.0,65583.0,0.3608]
[1729005551507,0.076245,65595.0,65583.0,0.3608]
[1729005551812,0.437042,65597.0,65587.0,0.45]
[1729005552002,0.076248,65592.0,65576.0,0.8108]
[1729005552207,0.076249,65591.0,65587.0,0.076253]
[1729005552510,0.07625,65591.0,65587.0,0.076253]
[1729005552711,0.36626966,65597.0,65592.0,0.076247]
[1729005552907,0.36626966,65597.0,65581.0,0.45]
[1729005553210,0.36626966,65597.0,65586.0,0.076254]
[1729005553211,0.45,65592.0,65586.0,0.076254]
[1729005553417,0.36626966,65597.0,65583.0,0.45]
[1729005553606,0.36626966,65597.0,65596.0,0.076243]
[1729005553917,0.81626966,65597.0,65577.0,0.45]
[1729005554118,0.3608,65602.0,65592.0,0.45]
[1729005554411,0.45,65594.0,65577.0,0.40606774]
[1729005554607,0.3608,65593.0,65579.0,0.45]
[1729005554801,0.526239,65599.0,65579.0,0.45]
[1729005554802,0.45,65599.0,65579.0,0.45]
[1729005555004,0.3608,65593.0,65579.0,0.45]
[1729005555212,0.3608,65593.0,65585.0,0.076255]
[1729005555409,0.076248,65592.0,65585.0,0.076255]
[1729005555808,0.076249,65591.0,65585.0,0.076255]
[1729005556207,0.07625,65590.0,65585.0,0.076255]
[1729005556411,0.076251,65589.0,65581.0,0.07626]
[1729005556617,0.076248,65592.0,65587.0,0.076253]
[1729005556820,0.45,65588.0,65579.0,0.076262]
[1729005557017,0.3608,65587.0,65582.0,0.076258]
[1729005557217,0.076255,65586.0,65579.0,0.076263]
[1729005557407,0.3608,65587.0,65579.0,0.076263]
[1729005558014,0.3608,65587.0,65581.0,0.076259]
[1729005558218,0.076254,65586.0,65581.0,0.076259]
[1729005558509,0.3608,65587.0,65586.0,0.076254]
[1729005558709,0.3608,65587.0,65577.0,0.3608]
[1729005558710,0.0056065,65599.0,65585.0,0.45]
[1729005559020,0.3608,65601.0,65578.0,0.22845039]
[1729005559021,0.45,65590.0,65578.0,0.22845039]
[1729005559319,0.076266,65576.0,65575.0,0.00548209]
[1729005559525,0.7216,65591.0,65574.0,0.00228744]
[1729005559713,0.076265,65577.0,65576.0,0.45]
[1729005559915,0.076267,65575.0,65574.0,0.00551541]
[1729005560211,0.076272,65571.0,65570.0,0.3608]
[1729005560521,0.3608,65585.0,65568.0,0.3608]
[1729005560522,0.076274,65569.0,65568.0,0.3608]
[1729005560709,0.526274,65569.0,65568.0,0.3608]
[1729005561517,0.076279,65565.0,65564.0,0.00552455]
[1729005561713,0.076279,65565.0,65563.0,0.1576]
[1729005561913,0.07628,65564.0,65563.0,0.1576]
[1729005562217,0.07628,65564.0,65549.0,0.1479]
[1729005562218,0.8108,65564.0,65549.0,0.1479]
[1729005562521,0.3608,65571.0,65556.0,0.00794425]
[1729005562522,0.076287,65558.0,65556.0,0.00794425]
[1729005562819,0.45,65563.0,65556.0,0.00228806]
[1729005562820,0.526288,65557.0,65556.0,0.00228806]
[1729005563021,0.887088,65557.0,65556.0,0.00228806]
[1729005563322,0.076309,65540.0,65535.0,0.076314]
[1729005563518,0.8108,65557.0,65539.0,0.076308]
[1729005563519,0.3608,65551.0,65539.0,0.076308]
[1729005563712,0.3608,65551.0,65537.0,0.45]
[1729005563713,0.076298,65549.0,65543.0,0.076304]
[1729005563911,0.076301,65547.0,65545.0,0.3608]
[1729005564112,0.076284,65561.0,65545.0,0.3608]
[1729005564113,0.8108,65564.0,65545.0,0.3608]
[1729005564315,0.8108,65564.0,65538.0,0.51497678]
[1729005564316,0.437071,65572.0,65563.0,0.076281]
[1729005564515,0.3608,65572.0,65567.0,0.076276]
[1729005564722,0.3608,65572.0,65570.0,0.45]
[1729005564920,0.3608,65572.0,65571.0,0.076272]
[1729005565115,0.3608,65581.0,65570.0,0.45]
[1729005565719,0.076271,65572.0,65570.0,0.45]
[1729005566018,0.3608,65581.0,65570.0,0.45565588]
[1729005566214,0.3608,65581.0,65565.0,0.3608]
[1729005566215,0.076272,65571.0,65565.0,0.8108]
[1729005566514,0.3608,65581.0,65570.0,0.45]
[1729005566722,0.076266,65577.0,65576.0,0.076266]
[1729005567015,0.3608,65581.0,65576.0,0.076266]
[1729005567214,0.076259,65582.0,65580.0,0.07626]
[1729005567519,0.076259,65582.0,65574.0,0.3608]
[1729005567520,0.076247,65593.0,65574.0,0.3608]
[1729005567720,0.3608,65595.0,65578.0,0.076264]
[1729005567923,0.3608,65588.0,65574.0,0.3608]
[1729005568116,0.3608,65588.0,65574.0,0.3662447]
[1729005568117,0.076254,65587.0,65574.0,0.3662447]
[1729005568317,0.076267,65575.0,65574.0,0.3662447]
[1729005568926,0.076267,65575.0,65571.0,0.3608]
[1729005568927,0.076271,65572.0,65571.0,0.3608]
[1729005569121,0.3608,65580.0,65560.0,0.3608]
[1729005569122,0.076279,65565.0,65560.0,0.3608]
[1729005569322,0.45,65573.0,65560.0,0.3608]
[1729005569516,0.076284,65561.0,65560.0,0.3608]
[1729005570321,0.076285,65560.0,65559.0,0.00228794]
[1729005570920,0.45,65562.0,65552.0,0.076293]
[1729005571113,0.3608,65560.0,65552.0,0.076293]
[1729005571321,0.076289,65556.0,65549.0,0.076297]
[1729005571624,0.076295,65551.0,65550.0,0.076296]
[1729005571824,0.45,65557.0,65546.0,0.3608]
[1729005571825,0.076299,65548.0,65546.0,0.076301]
[1729005572129,0.3618,65560.0,65546.0,0.3608]
[1729005572330,0.076299,65548.0,65546.0,0.36641476]
[1729005572522,0.3608,65560.0,65536.0,0.3608]
[1729005572523,0.3608,65549.0,65539.0,0.04526774]
[1729005572731,0.3608,65549.0,65537.0,0.00560587]
[1729005572921,0.3608,65549.0,65536.0,0.3608]
[1729005572922,0.076311,65539.0,65538.0,0.07631]
[1729005573326,0.076313,65536.0,65535.0,0.00228874]
[1729005573616,0.45,65539.0,65535.0,0.00228874]
[1729005573617,0.3608,65537.0,65536.0,0.076313]
[1729005574214,0.3608,65537.0,65530.0,0.04526774]
[1729005574418,0.3608,65537.0,65529.0,0.04526774]
[1729005574626,0.076318,65532.0,65527.0,0.12158974]
[1729005574827,0.45,65526.0,65520.0,0.00541806]
[1729005575024,0.45,65526.0,65512.0,0.3608]
[1729005575025,0.45,65521.0,65515.0,0.04526774]
[1729005575419,0.45,65521.0,65513.0,0.076339]
[1729005575420,0.076335,65517.0,65513.0,0.12160674]
[1729005575620,0.3608,65522.0,65514.0,0.45]
[1729005575830,0.00229053,65529.0,65521.0,0.45]
[1729005576026,0.00229053,65529.0,65524.0,0.076326]
[1729005576027,0.076324,65527.0,65524.0,0.076326]
[1729005576221,0.076324,65527.0,65520.0,0.45]
[1729005576222,0.00229053,65529.0,65528.0,0.076322]
[1729005576528,0.00229053,65529.0,65521.0,0.04526774]
[1729005576722,0.00229053,65529.0,65528.0,0.076322]
[1729005577128,0.00229053,65529.0,65525.0,0.04526774]
[1729005577328,0.00229053,65529.0,65520.0,0.04526774]
[1729005577523,0.00229053,65529.0,65517.0,0.076334]
[1729005577524,0.07633,65521.0,65517.0,0.076334]
[1729005577728,0.07633,65521.0,65518.0,0.076333]
[1729005577931,0.00229053,65529.0,65519.0,0.45]
[1729005578126,0.01529053,65529.0,65528.0,0.001]
[1729005578326,0.09161153,65529.0,65528.0,0.001]
[1729005578522,0.54941153,65529.0,65528.0,0.001]
[1729005578927,0.54941153,65529.0,65512.0,0.43714]